bitfinex-derivatives/quotes_SOLF0:USTF0_20250320
["timestamp","ask_amount","ask_price","bid_price","bid_amount"]
[1742480593874,7.6016,131.6,131.59,0.05389473]
[1742480594487,29.5,131.62,131.59,0.05389473]
[1742480595481,7.601,131.61,131.59,0.05389473]
[1742480595684,29.5,131.62,131.59,0.05389473]
[1742480596181,29.5,131.61,131.59,0.05389473]
[1742480596788,0.04840079,131.63,131.6,62.0]
[1742480597094,0.04840079,131.63,131.62,7.6005]
[1742480597586,0.04840079,131.63,131.6,62.0]
[1742480598182,0.04840079,131.63,131.62,7.6005]
[1742480598979,0.04840079,131.63,131.61,7.6008]
[1742480599788,0.04840079,131.63,131.6,62.0]
[1742480600197,0.04840079,131.63,131.61,7.6007]
[1742480600894,0.04840079,131.63,131.6,62.0]
[1742480601286,0.04840079,131.63,131.6,69.6013]
[1742480601481,0.04840079,131.63,131.6,62.0]
[1742480601893,0.04840079,131.63,131.59,4.21399473]
[1742480602093,29.48,131.62,131.59,0.05389473]
[1742480602391,7.6016,131.6,131.59,0.05389473]
[1742480604686,57.45950956,131.62,131.52,4.1852]
[1742480604887,27.97950956,131.58,131.52,62.0]
[1742480605094,29.48,131.57,131.49,4.05]
[1742480605287,7.6061,131.53,131.49,4.05]
[1742480605493,29.48,131.52,131.49,4.05]
[1742480605695,29.48,131.52,131.49,11.6577]
[1742480605890,258.744,131.61,131.5,29.48]
[1742480606191,29.48,131.6,131.5,29.48]
[1742480606592,7.6043,131.56,131.5,29.48]
[1742480606987,29.48,131.57,131.5,29.48]
[1742480607195,0.05533485,131.54,131.52,0.0531224]
[1742480607791,0.05533485,131.54,131.52,7.6591224]
[1742480607988,29.53533485,131.54,131.52,0.0531224]
[1742480608899,37.14053485,131.54,131.52,0.0531224]
[1742480609201,29.53533485,131.54,131.52,0.0531224]
[1742480609497,7.6057,131.53,131.52,0.0531224]
[1742480609696,27.97950956,131.53,131.45,250.82]
[1742480609890,29.53533485,131.54,131.45,308.27950956]
[1742480609891,37.0853,131.54,131.45,308.27950956]
[1742480610087,29.48,131.54,131.45,308.27950956]
[1742480610294,29.48,131.54,131.49,7.6076]
[1742480610698,7.6058,131.53,131.45,308.27950956]
[1742480610902,0.05800696,131.53,131.5,0.05272931]
[1742480611100,29.48,131.54,131.5,0.05272931]
[1742480611400,0.05688274,131.53,131.51,7.6065]
[1742480611601,0.05688274,131.53,131.5,0.05272931]
[1742480612004,0.05688274,131.53,131.52,7.6062]
[1742480612891,3.9978,131.61,131.51,57.47950956]
[1742480613097,250.9,131.66,131.52,3.9512]
[1742480613098,29.5,131.6,131.52,3.9512]
[1742480613297,29.5,131.6,131.57,7.6031]
[1742480613796,37.102,131.6,131.53,27.97950956]
[1742480613992,37.15731499,131.6,131.57,0.05693787]
[1742480614202,29.55531499,131.6,131.57,0.05693787]
[1742480614397,29.55531499,131.6,131.58,7.6028]
[1742480614593,29.55531499,131.6,131.57,0.05693787]
[1742480614898,29.55531499,131.6,131.58,7.6022]
[1742480615101,29.55531499,131.6,131.57,0.05693787]
[1742480615504,29.55531499,131.6,131.58,7.6024]
[1742480616304,0.05531499,131.6,131.59,7.6022]
[1742480616808,278.87950956,131.71,131.59,27.97950956]
[1742480617008,29.5,131.7,131.6,4.144]
[1742480617204,250.9,131.71,131.6,33.644]
[1742480617409,29.5,131.7,131.61,4.1128]
[1742480617609,258.4956,131.71,131.62,27.97950956]
[1742480617806,12.7164,131.72,131.61,4.1128]
[1742480617807,29.5,131.69,131.61,4.1128]
[1742480618007,29.52959024,131.68,131.65,0.04815301]
[1742480618206,7.5985,131.66,131.65,0.04815301]
[1742480618615,29.52959024,131.68,131.65,0.04815301]
[1742480618912,7.5981,131.67,131.65,0.04815301]
[1742480619106,29.52959024,131.68,131.65,0.04815301]
[1742480620107,7.5976,131.67,131.65,0.04815301]
[1742480620313,29.52959024,131.68,131.65,0.04815301]
[1742480620708,7.5982,131.66,131.65,0.04815301]
[1742480621110,29.52959024,131.68,131.65,0.04815301]
[1742480621912,7.5982,131.66,131.65,0.04815301]
[1742480622720,7.5978,131.67,131.65,0.04815301]
[1742480622919,29.48,131.66,131.65,0.04815301]
[1742480623422,29.48,131.66,131.52,267.84406923]
[1742480623423,65.05950956,131.66,131.52,267.84406923]
[1742480623614,27.97950956,131.63,131.54,12.3697]
[1742480623815,29.48,131.62,131.54,4.2766]
[1742480624017,29.48,131.62,131.52,250.82]
[1742480624219,29.48,131.62,131.52,280.3]
[1742480624512,0.05426506,131.58,131.56,0.05790984]
[1742480626211,7.6034,131.57,131.56,0.05790984]
[1742480629514,7.65726506,131.58,131.56,0.05790984]
[1742480629914,0.05426506,131.58,131.56,0.05790984]
[1742480630519,0.05426506,131.58,131.56,7.66150984]
[1742480630818,29.48,131.6,131.56,0.05790984]
[1742480631018,4.2187,131.65,131.57,7.6034]
[1742480631019,37.081,131.62,131.57,7.6034]
[1742480631221,29.48,131.62,131.55,29.48]
[1742480631420,29.48,131.62,131.54,27.97950956]
[1742480631624,7.602,131.6,131.55,7.6042]
[1742480632019,0.02347819,131.59,131.56,0.04816386]
[1742480632824,29.50347819,131.59,131.56,0.04816386]
[1742480633226,29.50347819,131.59,131.57,7.6033]
[1742480633524,0.02347819,131.59,131.56,0.04816386]
[1742480633925,0.02347819,131.59,131.58,7.6028]
[1742480634126,0.02347819,131.59,131.56,0.04816386]
[1742480634426,37.10567819,131.59,131.56,0.04816386]
[1742480634924,7.62567819,131.59,131.56,0.04816386]
[1742480635127,0.02347819,131.59,131.56,0.04816386]
[1742480635717,0.02347819,131.59,131.57,7.6031]
[1742480635920,0.02347819,131.59,131.56,0.04816386]
[1742480636326,0.02347819,131.59,131.57,7.6029]
[1742480636624,0.02347819,131.59,131.56,0.04816386]
[1742480637015,0.02347819,131.59,131.58,7.6028]
[1742480638124,0.02347819,131.59,131.57,7.603]
[1742480638320,29.50347819,131.59,131.57,7.603]
[1742480639123,29.50347819,131.59,131.58,7.6028]
[1742480639625,0.02347819,131.59,131.58,7.6028]
[1742480648531,29.48,131.64,131.57,27.97950956]
[1742480648735,33.6987,131.65,131.57,40.60690956]
[1742480649130,7.6,131.63,131.57,40.60690956]
[1742480649534,7.6,131.63,131.61,7.601]
[1742480649733,29.48,131.63,131.61,7.601]
[1742480650131,37.0802,131.63,131.59,0.05722917]
[1742480650329,29.48,131.63,131.59,0.05722917]
[1742480651535,7.5997,131.64,131.59,0.05722917]
[1742480651737,29.48,131.64,131.6,62.0]
[1742480652236,37.0796,131.64,131.61,7.6005]
[1742480653041,7.6,131.63,131.61,7.6005]
[1742480653332,29.48,131.64,131.6,62.0]
[1742480654034,37.0796,131.64,131.62,7.6002]
[1742480654428,37.0796,131.64,131.62,7.65264659]
[1742480654633,37.0796,131.64,131.62,0.05244659]
[1742480655204,278.75950956,131.63,131.53,48.9783432]
[1742480655365,27.97950956,131.59,131.53,41.3730432]
[1742480655594,37.2768,131.58,131.53,41.3730432]
[1742480656136,7.605,131.55,131.53,41.3730432]
[1742480656337,29.48,131.54,131.53,41.3730432]
[1742480656531,29.48,131.54,131.53,41.42528182]
[1742480656941,37.0851,131.54,131.53,41.42528182]
[1742480657642,37.0851,131.54,131.53,0.05223862]
[1742480657943,7.6051,131.54,131.53,0.05223862]
[1742480658140,37.0851,131.54,131.53,0.05223862]
[1742480658332,29.48,131.54,131.53,0.05223862]
[1742480659840,0.05244659,131.57,131.53,0.05223862]
[1742480660143,29.48,131.56,131.54,7.6047]
[1742480660545,29.48,131.56,131.53,0.05223862]
[1742480661435,32.9747,131.56,131.53,0.05223862]
[1742480661743,7.6051,131.54,131.53,0.05223862]
[1742480662238,7.6048,131.55,131.53,0.05223862]
[1742480662438,32.9747,131.56,131.53,0.05223862]
[1742480662644,29.48,131.56,131.53,0.05223862]
[1742480662945,0.05244659,131.57,131.53,28.03174818]
[1742480663133,0.05244659,131.57,131.54,40.025]
[1742480663334,29.48,131.63,131.56,27.97950956]
[1742480663542,29.48,131.63,131.6,7.6013]
[1742480663744,29.48,131.63,131.57,29.48]
[1742480664044,29.48,131.63,131.6,7.6015]
[1742480664235,29.48,131.63,131.57,29.48]
[1742480664434,29.48,131.63,131.6,7.65170564]
[1742480665738,29.48,131.63,131.6,0.05040564]
[1742480666247,29.48,131.63,131.6,69.65160564]
[1742480666640,29.48,131.63,131.6,0.05040564]
[1742480666947,7.6009,131.62,131.6,0.05040564]
[1742480667248,29.48,131.63,131.54,7.0852]
[1742480668348,0.05040564,131.6,131.57,0.05751212]
[1742480668544,29.48,131.59,131.57,0.05751212]
[1742480669147,29.48,131.59,131.58,7.6027]
[1742480670847,0.05040564,131.6,131.59,7.6022]
[1742480675249,0.05040564,131.6,131.58,7.6026]
[1742480675448,0.05040564,131.6,131.57,0.05751212]
[1742480676547,0.05040564,131.6,131.59,7.6022]
[1742480677850,29.48,131.63,131.62,7.6003]
[1742480678049,29.48,131.64,131.62,7.6003]
[1742480678249,29.48,131.66,131.61,7.6008]
[1742480678445,29.48,131.66,131.57,29.48]
[1742480678753,29.48,131.66,131.61,7.6006]
[1742480678953,7.599,131.65,131.6,0.05611995]
[1742480679255,29.48,131.66,131.6,0.05611995]
[1742480679447,7.599,131.65,131.6,0.05611995]
[1742480679648,29.48,131.66,131.6,0.05611995]
[1742480679953,7.6004,131.63,131.6,0.05611995]
[1742480680151,29.48,131.62,131.6,0.05611995]
[1742480680351,29.48,131.61,131.6,0.05611995]
[1742480680853,37.081,131.61,131.6,0.05611995]
[1742480681148,38.74570956,131.67,131.63,7.5998]
[1742480681348,3.462,131.67,131.6,29.48]
[1742480681550,3.462,131.67,131.64,0.05637706]
[1742480682053,32.942,131.67,131.64,0.05637706]
[1742480682246,32.942,131.67,131.64,7.65547706]
[1742480682845,32.942,131.67,131.64,0.05637706]
[1742480683049,29.48,131.67,131.64,0.05637706]
[1742480683349,29.48,131.67,131.65,7.5982]
[1742480684155,39.17310956,131.71,131.64,0.05637706]
[1742480684549,29.48,131.7,131.64,0.05637706]
[1742480685157,3.5981,131.71,131.64,0.05637706]
[1742480685356,33.0781,131.71,131.64,0.05637706]
[1742480685755,33.0781,131.71,131.68,7.5968]
[1742480685956,33.0781,131.71,131.63,57.45950956]
[1742480686257,33.0781,131.71,131.68,7.65073936]
[1742480686757,37.0562,131.7,131.68,0.05403936]
[1742480687156,29.46,131.7,131.68,0.05403936]
[1742480688055,37.0561,131.7,131.68,0.05403936]
[1742480688259,29.46,131.7,131.68,0.05403936]
[1742480689961,57.43950956,131.7,131.68,0.05403936]
[1742480690461,3.5981,131.71,131.68,0.05403936]
[1742480690660,29.46,131.7,131.68,0.05403936]
[1742480690964,29.46,131.7,131.69,7.5964]
[1742480691257,29.46,131.7,131.68,0.05403936]
[1742480691461,7.5964,131.69,131.68,0.05403936]
[1742480691856,29.46,131.7,131.68,0.05403936]
[1742480694464,3.7624,131.71,131.68,7.65093936]
[1742480694765,29.48,131.7,131.68,7.65093936]
[1742480694961,29.48,131.71,131.68,7.65093936]
[1742480695265,37.0754,131.71,131.68,7.65093936]
[1742480695765,29.48,131.71,131.68,0.05403936]
[1742480696262,29.48,131.71,131.68,7.65053936]
[1742480696668,37.0754,131.71,131.68,7.65053936]
[1742480696963,10.7737,131.76,131.68,0.05403936]
[1742480697166,10.7737,131.76,131.64,278.65950956]
[1742480697167,10.7737,131.76,131.67,27.97950956]
[1742480697465,3.6568,131.76,131.72,7.5946]
[1742480697661,37.0533,131.75,131.72,7.5946]
[1742480698267,37.0533,131.75,131.73,7.594]
[1742480698662,29.46,131.75,131.73,7.594]
[1742480698863,250.68,131.83,131.72,57.43950956]
[1742480699065,35.44680956,131.85,131.72,57.43950956]
[1742480699389,7.5892,131.82,131.78,7.5907]
[1742480699561,29.48,131.81,131.75,57.45950956]
[1742480699761,7.4673,131.85,131.8,7.5901]
[1742480699966,29.5,131.84,131.8,7.5901]
[1742480700166,29.5,131.84,131.81,0.05601734]
[1742480700368,7.5889,131.82,131.81,0.05601734]
[1742480701660,7.5886,131.83,131.81,0.05601734]
[1742480701862,7.4673,131.85,131.81,0.05601734]
[1742480702063,3.6703,131.85,131.81,0.05601734]
[1742480702259,3.8232,131.9,131.81,0.05601734]
[1742480702464,33.4232,131.9,131.82,29.6]
[1742480702665,7.5853,131.89,131.84,7.63778307]
[1742480702958,7.5853,131.89,131.84,0.05048307]
[1742480703167,29.62,131.88,131.86,7.5865]
[1742480703359,29.62,131.88,131.82,308.17950956]
[1742480703563,29.62,131.88,131.86,0.05796658]
[1742480704262,3.5347,131.93,131.86,0.05796658]
[1742480704573,29.64,131.92,131.86,0.05796658]
[1742480704763,57.61950956,131.92,131.86,0.05796658]
[1742480705264,29.62,131.92,131.88,7.5852]
[1742480705464,29.64,131.91,131.87,62.0]
[1742480705666,3.5347,131.93,131.89,0.05333628]
[1742480705966,29.72,131.96,131.89,0.05333628]
[1742480706864,7.5824,131.94,131.89,7.63793628]
[1742480707069,27.97950956,131.96,131.89,0.05333628]
[1742480707269,29.72,131.95,131.89,0.05333628]
[1742480707767,57.69950956,131.95,131.91,0.04879472]
[1742480707964,7.5854,131.89,131.85,3.4685]
[1742480708165,29.76,131.9,131.85,3.4685]
[1742480708471,29.76,131.91,131.83,287.768]
[1742480708668,29.76,131.91,131.83,308.15950956]
[1742480708867,29.76,131.91,131.84,3.5791]
[1742480709066,7.5853,131.89,131.84,3.5791]
[1742480709263,7.63409472,131.89,131.86,0.05456895]
[1742480709468,0.04879472,131.89,131.86,0.05456895]
[1742480709870,37.3459,131.88,131.86,0.05456895]
[1742480710071,29.76,131.88,131.86,0.05456895]
[1742480710475,7.5861,131.87,131.86,0.05456895]
[1742480710865,29.76,131.88,131.8,62.0]
[1742480711572,33.541,131.88,131.8,62.0]
[1742480711971,29.76,131.88,131.81,29.76]
[1742480712173,0.05624811,131.85,131.84,7.5878]
[1742480714167,0.05624811,131.85,131.83,0.05364743]
[1742480715774,0.05624811,131.85,131.84,7.5878]
[1742480717080,29.74,131.9,131.87,7.5859]
[1742480717374,31.76050956,131.93,131.87,7.5859]
[1742480717581,29.74,131.92,131.87,7.5859]
[1742480717784,29.74,131.92,131.86,7.5864]
[1742480717979,7.5845,131.9,131.86,7.5864]
[1742480718276,0.04711556,131.9,131.88,0.04883053]
[1742480718480,29.7,131.89,131.88,0.04883053]
[1742480718682,37.2849,131.89,131.88,0.04883053]
[1742480719075,7.5866,131.87,131.81,29.72]
[1742480719477,29.7,131.89,131.81,29.72]
[1742480719673,7.5856,131.88,131.81,29.72]
[1742480719877,7.5856,131.88,131.85,7.5872]
[1742480720283,7.63575861,131.88,131.85,7.64223206]
[1742480720674,0.05015861,131.88,131.85,0.05503206]
[1742480721978,0.05015861,131.88,131.87,7.5861]
[1742480723385,0.05015861,131.88,131.86,7.5863]
[1742480723584,0.05015861,131.88,131.85,0.05503206]
[1742480724084,0.05015861,131.88,131.87,7.5861]
[1742480724278,4.93500683,131.94,131.86,27.97950956]
[1742480724577,29.78,131.96,131.89,27.97950956]
[1742480724781,29.78,131.97,131.9,29.78]
[1742480724979,17.9339,132.0,131.9,29.78]
[1742480725180,29.76,131.99,131.96,7.5806]
[1742480725579,0.04578748,131.99,131.94,0.05207775]
[1742480725783,29.74,131.98,131.94,0.05207775]
[1742480726079,0.04578748,131.99,131.94,0.05207775]
[1742480726278,29.80578748,131.99,131.94,0.05207775]
[1742480726881,29.74,131.98,131.94,0.05207775]
[1742480727382,29.74,131.98,131.94,62.05207775]
[1742480727788,29.74,131.98,131.95,7.5813]
[1742480727986,29.74,131.98,131.94,62.05207775]
[1742480728379,29.74,131.98,131.95,7.5809]
[1742480728580,29.74,131.98,131.94,62.05207775]
[1742480728881,29.74,131.98,131.94,69.63387775]
[1742480729188,29.74,131.98,131.94,0.05207775]
[1742480729390,29.74,131.98,131.94,7.63407775]
[1742480729587,29.74,131.98,131.94,0.05207775]
[1742480730189,29.74,131.98,131.94,7.63377775]
[1742480730384,29.74,131.98,131.94,0.05207775]
[1742480731389,29.74,131.98,131.96,7.5805]
[1742480731590,29.74,131.98,131.94,0.05207775]
[1742480731792,29.86578748,131.99,131.97,7.5803]
[1742480732290,29.86578748,131.99,131.97,7.63668503]
[1742480732483,29.86578748,131.99,131.97,0.05638503]
[1742480732884,0.04578748,131.99,131.97,0.05638503]
[1742480733086,5.68798152,132.16,131.98,308.01950956]
[1742480733286,27.97950956,132.13,132.02,27.97950956]
[1742480733490,27.97950956,132.1,131.99,68.54800956]
[1742480734186,30.36,132.09,132.03,0.05101933]
[1742480734989,7.5744,132.08,132.03,0.05101933]
[1742480735286,30.36,132.09,132.03,0.05101933]
[1742480735490,27.97950956,132.1,132.03,0.05101933]
[1742480735688,30.38,132.09,132.03,0.05101933]
[1742480736094,30.38,132.09,132.03,62.05101933]
[1742480736391,30.38,132.09,132.04,7.5761]
[1742480736581,30.38,132.09,132.03,62.05101933]
[1742480737087,30.38,132.09,132.05,7.5754]
[1742480737292,30.38,132.09,132.03,62.0]
[1742480737589,30.38,132.09,132.06,0.05114008]
[1742480737988,27.97950956,132.08,132.06,0.05114008]
[1742480738389,43.13380956,132.08,131.99,10.2085]
[1742480738589,35.55380956,132.08,132.01,7.5777]
[1742480738893,7.5749,132.07,131.98,250.18]
[1742480739099,33.5911,132.06,132.03,7.5765]
[1742480739289,30.4,132.06,131.98,278.15950956]
[1742480739484,30.45114008,132.06,132.03,0.05744162]
[1742480739690,30.45114008,132.06,132.04,7.5762]
[1742480739886,0.05114008,132.06,132.03,0.05744162]
[1742480741284,0.05114008,132.06,132.04,7.5759]
[1742480741484,0.05114008,132.06,132.03,0.05744162]
[1742480741893,0.05114008,132.06,132.04,7.5759]
[1742480742193,0.05114008,132.06,132.03,0.05744162]
[1742480742493,0.05114008,132.06,132.05,7.5757]
[1742480742698,0.05114008,132.06,132.03,0.05744162]
[1742480743097,0.05114008,132.06,132.05,7.5757]
[1742480744402,6.7166,132.12,132.09,7.573]
[1742480744699,30.34,132.11,132.03,9.8123]
[1742480744998,30.34,132.11,132.09,7.5733]
[1742480745194,30.34,132.11,132.03,9.8123]
[1742480745691,30.34,132.11,132.06,0.04941927]
[1742480745999,7.5737,132.09,132.06,0.04941927]
[1742480746188,30.34,132.08,132.06,0.04941927]
[1742480746894,37.9141,132.08,132.06,0.04941927]
[1742480747395,30.34,132.08,132.06,0.04941927]
[1742480749089,37.9143,132.08,132.06,0.04941927]
[1742480749296,58.31950956,132.08,132.06,0.04941927]
[1742480749596,37.9143,132.08,132.06,0.04941927]
[1742480749795,1.51366078,132.13,132.06,0.04941927]
[1742480749995,33.5366,132.12,132.07,7.5743]
[1742480750293,3.2366,132.12,132.08,0.05726082]
[1742480750498,30.5,132.11,132.08,0.05726082]
[1742480750698,7.573,132.1,132.08,0.05726082]
[1742480751198,38.0725,132.11,132.08,0.05726082]
[1742480751598,30.46,132.1,132.08,0.05726082]
[1742480753496,30.46,132.1,132.08,7.63126082]
[1742480754794,30.46,132.1,132.09,7.5734]
[1742480755304,3.2366,132.12,132.09,7.5734]
[1742480755504,30.34,132.11,132.09,7.5734]
[1742480756199,7.5697,132.16,132.12,7.5717]
[1742480756401,30.5,132.16,132.09,27.97950956]
[1742480756702,7.5703,132.15,132.13,0.05793056]
[1742480756902,30.5,132.16,132.13,0.05793056]
[1742480757198,7.5706,132.14,132.13,0.05793056]
[1742480760495,7.5729,132.1,132.05,3.2886]
[1742480760698,30.44,132.09,132.01,27.97950956]
[1742480761010,30.44,132.08,132.05,7.5754]
[1742480761209,30.44,132.08,132.02,62.0]
[1742480761517,30.44,132.08,132.05,7.5757]
[1742480761718,0.05286114,132.07,132.05,0.05422931]
[1742480761917,0.05286114,132.07,132.05,7.62962931]
[1742480762315,0.05286114,132.07,132.05,0.05422931]
[1742480768319,7.62796114,132.07,132.05,0.05422931]
[1742480768719,0.05286114,132.07,132.05,0.05422931]
[1742480769024,7.5751,132.06,132.05,0.05422931]
[1742480769622,0.05286114,132.07,132.05,0.05422931]
[1742480770220,0.05286114,132.07,132.06,7.5751]
[1742480770427,0.05286114,132.07,132.05,0.05422931]
[1742480770921,7.62776114,132.07,132.05,0.05422931]
[1742480771225,0.05286114,132.07,132.05,0.05422931]
[1742480772026,7.5751,132.06,132.05,0.05422931]
[1742480773328,17.35516156,132.06,131.99,249.9]
[1742480773628,30.3,132.05,131.99,249.9]
[1742480774421,30.3,132.05,131.96,65.22620476]
[1742480774422,0.05568034,132.03,131.96,58.72820476]
[1742480774624,30.28,132.02,132.01,0.04856185]
[1742480774823,47.63516156,132.02,131.96,41.3730432]
[1742480775220,0.0518197,132.0,131.98,0.05191344]
[1742480775425,30.32,131.99,131.98,0.05191344]
[1742480775621,0.0518197,132.0,131.98,0.05191344]
[1742480776126,0.0518197,132.0,131.99,7.5792]
[1742480776519,0.0518197,132.0,131.98,0.05191344]
[1742480776725,30.4718197,132.0,131.98,0.05191344]
[1742480777931,0.0518197,132.0,131.98,0.05191344]
[1742480778321,0.0518197,132.0,131.99,7.5792]
[1742480779122,30.38,132.04,131.99,17.35516156]
[1742480779428,249.96,132.1,132.01,17.35516156]
[1742480779625,7.5743,132.08,132.03,17.35516156]
[1742480780226,0.05682613,132.07,132.06,7.575]
[1742480780826,0.05682613,132.07,132.04,0.05196255]
[1742480781027,30.36,132.06,132.04,0.05196255]
[1742480781424,7.5757,132.05,132.04,0.05196255]
[1742480781731,30.36,132.06,132.04,0.05196255]
[1742480782230,37.9355,132.06,132.04,0.05196255]
[1742480782430,30.36,132.06,132.04,0.05196255]
[1742480784326,37.9352,132.06,132.04,0.05196255]
[1742480784729,30.36,132.06,132.04,0.05196255]
[1742480786025,37.9354,132.06,132.04,0.05196255]
[1742480786435,30.36,132.06,132.04,0.05196255]
[1742480786637,7.5757,132.05,132.04,0.05196255]
[1742480788337,30.36,132.06,131.99,3.4733]
[1742480788338,7.5777,132.02,131.99,7.579]
[1742480788636,7.5777,132.02,131.97,3.2237]
[1742480788637,30.22,132.02,131.97,3.2237]
[1742480789431,0.05222869,132.01,131.98,0.0544917]
[1742480789637,0.05222869,132.01,132.0,7.5786]
[1742480789935,0.05222869,132.01,131.98,0.0544917]
[1742480790137,7.63052869,132.01,131.98,7.6339917]
[1742480790339,0.05222869,132.01,131.98,0.0544917]
[1742480790541,0.05222869,132.01,132.0,7.5786]
[1742480791533,0.05222869,132.01,131.98,0.0544917]
[1742480791839,7.5821,131.94,131.9,41.3730432]
[1742480792035,30.42,131.93,131.9,44.6144432]
[1742480792938,30.46911065,131.93,131.9,44.66861564]
[1742480793636,0.04911065,131.93,131.9,44.66861564]
[1742480793834,30.38,131.96,131.9,3.29557244]
[1742480794837,251.51503673,132.01,131.9,3.29557244]
[1742480794838,30.34,131.98,131.9,3.29557244]
[1742480795035,0.05483658,131.94,131.93,7.5823]
[1742480795240,30.34,131.98,131.93,0.05528205]
[1742480796242,0.05733837,131.97,131.93,0.05528205]
[1742480796743,0.05733837,131.97,131.95,7.5811]
[1742480797131,0.05733837,131.97,131.93,0.05528205]
[1742480797335,0.05733837,131.97,131.96,7.5809]
[1742480797543,30.28,132.03,131.95,30.28]
[1742480797844,7.5782,132.01,131.97,7.58]
[1742480798142,30.28,132.03,131.95,33.7256]
[1742480798542,30.28,132.03,131.98,7.5795]
[1742480798740,30.28,132.03,131.98,7.63513593]
[1742480799139,30.28,132.03,131.98,0.05563593]
[1742480800043,37.8572,132.03,131.99,7.5786]
[1742480800344,30.28,132.03,131.98,0.05563593]
[1742480800542,30.28,132.03,132.01,7.5776]
[1742480800743,27.76946888,132.09,131.98,57.96946888]
[1742480800946,30.2,132.08,132.01,0.05421007]
[1742480801133,7.5752,132.06,132.02,7.5772]
[1742480801338,17.3561129,132.06,132.03,0.05630841]
[1742480801839,30.2,132.05,132.03,0.05630841]
[1742480802345,30.18,132.07,132.04,7.5763]
[1742480802544,30.18,132.07,132.03,0.05630841]
[1742480802745,37.7338,132.09,132.05,7.5754]
[1742480802939,37.7338,132.09,132.02,10.2073]
[1742480802940,30.16,132.09,132.02,10.2073]
[1742480803244,30.16,132.09,132.06,0.04989586]
[1742480803444,7.5744,132.08,132.06,0.04989586]
[1742480803647,270.6020129,132.12,132.06,0.04989586]
[1742480803839,30.14,132.11,132.06,0.04989586]
[1742480804044,7.5732,132.1,132.07,7.5743]
[1742480804245,30.14,132.1,132.06,0.04989586]
[1742480804545,37.7127,132.11,132.08,7.5737]
[1742480805047,30.12,132.14,132.08,0.05031249]
[1742480805344,30.12,132.14,132.08,6.69111249]
[1742480805544,37.6909,132.14,132.11,7.572]
[1742480805946,37.6909,132.14,132.11,7.62690017]
[1742480806137,7.5703,132.15,132.12,7.5716]
[1742480806337,6.6241,132.18,132.11,0.05490017]
[1742480806338,3.4222,132.18,132.11,0.05490017]
[1742480806543,30.08,132.17,132.11,0.05490017]
[1742480806740,30.08,132.17,132.13,7.5708]
[1742480806939,30.08,132.17,132.13,7.62765356]
[1742480807247,37.6492,132.17,132.13,7.62765356]
[1742480807847,30.08,132.17,132.13,0.05685356]
[1742480809451,253.3878,132.22,132.13,57.81316562]
[1742480809452,30.04,132.2,132.13,57.81316562]
[1742480809646,30.06,132.22,132.14,10.3888]
[1742480809850,30.06,132.22,132.15,0.0544034]
[1742480810148,31.17951206,132.25,132.16,30.06]
[1742480810149,30.06,132.23,132.16,30.06]
[1742480810541,7.5664,132.22,132.16,30.06]
[1742480810741,7.5664,132.22,132.18,0.0567112]
[1742480810939,30.06,132.23,132.18,0.0567112]
[1742480811138,7.5663,132.22,132.18,0.0567112]
[1742480812349,30.06,132.23,132.18,0.0567112]
[1742480812545,30.06,132.23,132.18,62.0567112]
[1742480812750,30.02,132.25,132.18,62.0567112]
[1742480813050,37.5646,132.25,132.2,7.5669]
[1742480813250,30.0,132.25,132.18,62.0]
[1742480813444,30.0,132.25,132.21,0.05165054]
[1742480813640,30.02,132.27,132.21,0.05165054]
[1742480813950,3.4657,132.29,132.21,27.7879626]
[1742480813951,30.02,132.28,132.21,27.7879626]
[1742480814150,30.02,132.28,132.22,36.8646]
[1742480814451,30.02,132.28,132.23,0.04817313]
[1742480814651,37.5829,132.28,132.23,7.61337313]
[1742480814951,30.02,132.28,132.23,0.04817313]
[1742480815345,31.20201206,132.29,132.23,0.04817313]